bitfinex/quotes_ETHUSD_20240825
["timestamp","ask_amount","ask_price","bid_price","bid_amount"]
[1724571611338,3.64959,2740.1,2739.5,2.3351]
[1724571611642,3.64985,2739.9,2739.5,2.3351]
[1724571611969,3.64955,2740.1,2739.5,2.3351]
[1724571612357,3.64973,2740.0,2739.5,2.3351]
[1724571612545,3.64955,2740.1,2739.5,2.3351]
[1724571612795,7.29973,2739.9,2739.5,2.3351]
[1724571612934,3.64985,2739.9,2739.5,2.3351]
[1724571613139,3.6493,2740.3,2739.6,7.30023]
[1724571613380,3.64958,2740.1,2739.5,2.3351]
[1724571613939,7.29864,2740.3,2739.5,2.3351]
[1724571614144,7.29864,2740.3,2739.6,3.65007]
[1724571614563,3.6493,2740.3,2739.6,3.65007]
[1724571614953,4.013918,2740.5,2739.8,3.64989]
[1724571614954,3.64901,2740.5,2739.8,3.64989]
[1724571615167,3.64875,2740.7,2740.1,2.3351]
[1724571615352,0.364875,2740.7,2740.1,2.3351]
[1724571615555,3.64822,2741.1,2740.5,2.3351]
[1724571615882,3.64792,2741.3,2740.5,5.98405]
[1724571615883,3.64805,2741.2,2740.5,5.98405]
[1724571616066,3.64827,2741.1,2740.5,5.98405]
[1724571616266,3.64831,2741.0,2740.5,2.3351]
[1724571616468,3.64809,2741.2,2740.5,2.3351]
[1724571616972,3.64838,2741.0,2740.5,2.3351]
[1724571617181,3.64857,2740.8,2740.5,2.3351]
[1724571617341,3.64857,2740.8,2740.0,6.64963]
[1724571617342,3.64883,2740.6,2740.1,5.98459]
[1724571617684,3.64857,2740.8,2740.1,5.98459]
[1724571617843,3.64857,2740.8,2740.2,3.64935]
[1724571618043,3.64851,2740.9,2740.2,3.64935]
[1724571618252,7.29726,2740.8,2740.2,3.64935]
[1724571618458,3.6489,2740.6,2740.1,2.3351]
[1724571619268,3.64898,2740.5,2740.1,2.3351]
[1724571619443,7.29807,2740.5,2740.1,2.3351]
[1724571619643,3.64898,2740.5,2740.1,2.3351]
[1724571620165,3.64912,2740.4,2740.1,2.3351]
[1724571620368,3.64964,2740.0,2739.7,2.3743]
[1724571620738,3.64964,2740.0,2739.6,1.12111223]
[1724571620987,3.64943,2740.2,2739.6,4.77127223]
[1724571621370,3.64943,2740.2,2739.6,1.12111223]
[1724571621371,7.29892,2740.2,2739.6,1.12111223]
[1724571621571,3.64943,2740.2,2739.6,1.12111223]
[1724571621771,3.64984,2739.9,2739.6,1.12111223]
[1724571622291,3.64999,2739.8,2739.4,2.3743]
[1724571623703,7.29944,2740.0,2739.4,2.3743]
[1724571623918,3.64979,2739.9,2739.4,2.3743]
[1724571624704,3.64994,2739.8,2739.4,2.3743]
[1724571626201,3.65004,2739.7,2739.4,2.3743]
[1724571626804,3.65004,2739.7,2739.1,6.02502]
[1724571627138,3.65004,2739.7,2738.7,2.3743]
[1724571627139,3.6507,2739.2,2738.7,2.3743]
[1724571627338,3.65061,2739.3,2738.7,6.02558]
[1724571627939,3.65083,2739.1,2738.7,2.3743]
[1724571628104,3.65083,2739.1,2738.5,3.65154]
[1724571628309,3.65083,2739.1,2738.4,2.3743]
[1724571628806,3.65083,2739.1,2738.5,3.65155]
[1724571629347,3.6507,2739.2,2738.5,3.65155]
[1724571629667,7.301,2739.4,2738.8,3.65115]
[1724571629801,3.0,2739.5,2739.0,2.4743]
[1724571630155,7.46,2739.7,2739.0,2.4743]
[1724571630451,3.64986,2739.9,2739.2,3.65061]
[1724571630747,0.364943,2740.2,2739.0,2.4743]
[1724571630748,3.65018,2739.6,2739.0,2.4743]
[1724571631103,3.65031,2739.5,2739.0,2.4743]
[1724571632043,3.65043,2739.4,2739.0,2.4743]
[1724571632950,3.65027,2739.6,2739.0,6.12524]
[1724571633263,3.0,2740.2,2739.2,2.3743]
[1724571633412,3.64997,2739.8,2739.2,2.3743]
[1724571633600,3.64997,2739.8,2739.2,6.02499]
[1724571633806,3.64944,2740.2,2739.5,3.65018]
[1724571634072,6.04807,2740.4,2739.5,3.65018]
[1724571634267,3.64931,2740.3,2739.8,2.3743]
[1724571634424,3.64937,2740.2,2739.8,2.3743]
[1724571634777,1.475848,2740.3,2739.8,6.02418]
[1724571634987,1.475848,2740.3,2738.1,0.57210008]
[1724571634988,3.64851,2740.9,2740.2,3.64928]
[1724571635139,3.64842,2741.0,2740.4,3.64899]
[1724571635526,3.64846,2740.9,2740.3,2.3743]
[1724571635862,3.64861,2740.8,2740.3,2.3743]
[1724571636065,3.64842,2741.0,2740.3,2.3743]
[1724571636224,3.64839,2741.0,2740.4,3.64909]
[1724571636425,3.64858,2740.8,2740.3,2.3743]
[1724571636849,4.013209,2741.0,2740.3,6.02345]
[1724571637129,3.64886,2740.6,2740.3,2.3743]
[1724571637442,3.64865,2740.8,2740.3,2.3743]
[1724571637799,0.364839,2741.0,2740.0,2.3743]
[1724571637800,3.64897,2740.5,2740.0,2.3743]
[1724571638075,3.6486,2740.8,2740.3,3.64919]
[1724571638223,0.364839,2741.0,2740.0,2.3743]
[1724571638224,3.64842,2741.0,2740.0,2.3743]
[1724571638423,3.64907,2740.5,2740.0,2.3743]
[1724571638820,3.64918,2740.4,2740.0,2.3743]
[1724571639025,3.64906,2740.5,2740.0,2.3743]
[1724571639262,4.013966,2740.5,2740.0,2.3743]
[1724571639419,3.64923,2740.3,2739.7,9.67415]
[1724571639872,3.64906,2740.5,2739.9,3.64964]
[1724571640177,3.64906,2740.5,2739.8,3.64978]
[1724571640481,3.64914,2740.4,2739.9,3.64975]
[1724571640662,3.64906,2740.5,2739.9,3.64967]
[1724571640865,14.10844,2740.9,2739.5,2.354]
[1724571641035,3.64826,2741.1,2740.5,2.354]
[1724571641237,0.364826,2741.0,2740.5,2.354]
[1724571641483,4.013136,2741.0,2740.5,2.354]
[1724571642031,0.364826,2741.0,2740.5,6.00296]
[1724571642265,3.64826,2741.1,2740.5,6.00296]
[1724571642467,3.64826,2741.1,2740.5,2.354]
[1724571642672,3.64826,2741.1,2740.5,6.00296]
[1724571642878,7.46,2741.4,2740.9,3.64838]
[1724571643109,7.46,2741.4,2741.0,2.354]
[1724571643742,7.46,2741.4,2740.0,6.64959]
[1724571643743,3.64817,2741.1,2740.6,2.354]
[1724571643950,8.206,2741.4,2740.6,6.00281]
[1724571643951,3.64812,2741.2,2740.6,6.00281]
[1724571644145,3.64812,2741.2,2740.6,9.65155]
[1724571644345,11.10784,2741.4,2740.8,3.64846]
[1724571644873,11.10784,2741.4,2740.8,7.29694]
[1724571645073,3.64784,2741.4,2740.9,3.64842]
[1724571645275,3.0,2741.7,2741.0,3.64827]
[1724571645489,3.64772,2741.5,2740.9,3.64842]
[1724571645655,3.64785,2741.4,2740.8,7.29692]
[1724571645987,7.2949,2741.7,2741.1,6.00212]
[1724571646130,3.0,2741.8,2741.2,3.648]
[1724571646338,3.64727,2741.8,2741.2,3.648]
[1724571646936,3.64737,2741.7,2741.2,3.648]
[1724571647351,11.10713,2741.9,2740.3,3.0]
[1724571647352,3.64724,2741.8,2741.3,2.354]
[1724571647902,3.64737,2741.7,2741.3,2.354]
[1724571648052,3.64724,2741.8,2741.3,2.354]
[1724571648390,11.1071,2741.9,2741.3,6.00179]
[1724571648551,3.64724,2741.8,2741.3,2.354]
[1724571648939,7.29357,2742.2,2741.5,3.64763]
[1724571649134,3.64674,2742.2,2741.6,2.4269437]
[1724571649735,3.64674,2742.2,2741.7,3.64736]
[1724571650102,3.64674,2742.2,2741.6,2.354]
[1724571650238,3.64733,2741.8,2741.6,2.354]
[1724571650880,3.6474,2741.7,2741.2,2.354]
[1724571651081,0.746,2742.4,2741.2,2.354]
[1724571651082,3.64751,2741.6,2741.2,2.354]
[1724571651790,3.64729,2741.8,2741.2,2.354]
[1724571651988,3.64719,2741.9,2741.3,3.64781]
[1724571652151,7.2941,2742.0,2741.3,3.64778]
[1724571652490,3.64714,2741.9,2741.3,3.64778]
[1724571652701,3.64702,2742.0,2741.4,3.64774]
[1724571652998,11.10675,2742.2,2741.5,3.64755]
[1724571653299,3.64675,2742.2,2741.7,3.64736]
[1724571653433,0.746,2742.4,2741.6,2.354]
[1724571653737,7.29415,2742.0,2741.6,2.354]
[1724571653936,3.746,2742.4,2741.2,2.354]
[1724571653937,3.64739,2741.7,2741.2,2.354]
[1724571654135,7.29432,2741.9,2741.2,2.354]
[1724571654350,3.64712,2741.9,2741.3,3.64785]
[1724571654588,3.64731,2741.8,2741.2,2.354]
[1724571654994,3.64742,2741.7,2741.2,2.354]
[1724571655152,3.64726,2741.8,2741.2,6.00195]
[1724571655940,3.64726,2741.8,2741.2,2.354]
[1724571656478,3.64712,2741.9,2741.2,2.354]
[1724571656693,3.64712,2741.9,2741.4,3.64775]
[1724571656848,7.29387,2742.1,2741.4,3.64775]
[1724571657085,3.64699,2742.0,2741.4,3.64775]
[1724571657387,3.64745,2741.7,2741.2,2.354]
[1724571657859,3.6472,2741.9,2741.2,6.00194]
[1724571658265,3.6473,2741.8,2741.2,6.00194]
[1724571658842,3.64738,2741.7,2741.2,2.354]
[1724571659043,3.6478,2741.4,2741.2,2.354]
[1724571659461,3.64754,2741.6,2741.2,2.354]
[1724571659963,3.64704,2742.0,2741.3,3.6478]
[1724571660165,3.64725,2741.8,2741.2,6.00192]
[1724571660597,3.64709,2742.0,2741.2,2.354]
[1724571660931,3.0,2741.9,2741.4,3.64777]
[1724571661081,14.10675,2742.2,2741.6,3.6475]
[1724571661450,4.3925,2742.4,2741.8,3.64714]
[1724571661451,3.6465,2742.4,2741.8,3.64714]
[1724571661650,11.10621,2742.6,2741.8,3.72007523]
[1724571661783,3.64653,2742.4,2741.8,3.64714]
[1724571662104,3.64658,2742.3,2741.8,3.64714]
[1724571662723,3.64653,2742.4,2741.8,7.29428]
[1724571662919,3.64653,2742.4,2741.8,3.72007619]
[1724571663124,3.64624,2742.6,2741.8,3.72007619]
[1724571663125,3.64624,2742.6,2741.9,0.07293618]
[1724571663285,6.64594,2742.8,2742.0,4.09182035]
[1724571663486,3.64594,2742.8,2742.2,3.6466]
[1724571663733,3.64594,2742.8,2742.2,3.71952597]
[1724571664133,3.6457,2743.0,2742.4,3.64638]
[1724571664649,3.64544,2743.2,2742.6,5.97722]
[1724571664948,3.64513,2743.4,2742.8,3.64585]
[1724571665084,3.64491,2743.6,2742.8,3.64586]
[1724571665283,3.64458,2743.8,2743.2,3.64536]
[1724571665485,3.64489,2743.6,2743.1,2.3311]
[1724571665685,3.645,2743.5,2743.1,2.3311]
[1724571665916,3.64489,2743.6,2743.1,2.3311]
[1724571666121,3.64462,2743.8,2743.1,2.70310762]
[1724571666122,3.64472,2743.7,2743.1,2.70310762]
[1724571666304,3.64451,2743.9,2743.1,2.70310762]
[1724571666528,3.64395,2744.3,2743.1,2.3311]
[1724571666529,3.64486,2743.6,2743.1,2.3311]
[1724571666888,3.64464,2743.8,2743.2,3.64527]
[1724571667090,7.76381942,2744.4,2743.3,3.64523]
[1724571667334,3.6444,2744.0,2743.4,3.6451]
[1724571667696,3.64469,2743.8,2743.2,3.64527]
[1724571667958,3.64481,2743.7,2743.1,2.3311]
[1724571668135,3.64498,2743.5,2743.1,2.3311]
[1724571668442,3.64481,2743.7,2743.1,2.3311]
[1724571668594,3.6445,2743.9,2743.2,7.29062]
[1724571668790,3.64423,2744.1,2743.4,3.6451]
[1724571669134,3.64423,2744.1,2743.5,2.3311]
[1724571669135,7.28908,2743.9,2743.5,2.3311]
[1724571669338,3.64453,2743.9,2743.5,2.3311]
[1724571670050,3.0,2744.0,2743.5,2.3311]
[1724571670189,3.64481,2743.7,2743.2,2.3311]
[1724571670550,3.64494,2743.6,2743.2,2.3311]
[1724571670834,3.64468,2743.8,2743.2,2.3311]
[1724571671036,3.64468,2743.8,2743.3,0.23311]
[1724571671203,3.64437,2744.0,2743.3,3.87834]
[1724571671407,3.64409,2744.2,2743.4,3.64503]
[1724571671792,3.64444,2743.9,2743.4,3.64503]
[1724571671951,3.64444,2743.9,2743.3,0.23311]
[1724571672165,3.64458,2743.8,2743.2,2.3311]
[1724571672453,3.64485,2743.6,2743.2,2.3311]
[1724571673083,3.64498,2743.5,2743.2,2.3311]
[1724571673380,3.64462,2743.8,2743.2,2.3311]
[1724571673581,3.64496,2743.6,2743.2,2.3311]
[1724571674929,3.6446,2743.8,2743.2,2.3311]
[1724571675126,3.0,2744.1,2743.2,2.3311]
[1724571675490,3.0,2744.2,2743.2,2.3311]
[1724571675628,3.64481,2743.7,2743.2,2.3311]
[1724571675951,3.64444,2743.9,2743.2,5.97636]
[1724571676157,3.64421,2744.1,2743.2,5.97636]
[1724571676472,6.64439,2744.0,2743.4,3.64502]
[1724571676846,3.64459,2743.8,2743.2,5.97636]
[1724571677056,3.64446,2743.9,2743.2,5.97636]
[1724571677057,3.64471,2743.7,2743.2,5.97636]
[1724571677262,3.64446,2743.9,2743.3,3.64512]
[1724571677468,3.0,2744.0,2743.4,3.64503]
[1724571677667,3.0,2744.0,2743.5,3.64497]
[1724571677668,6.64432,2744.0,2743.5,3.64497]
[1724571677971,3.6441,2744.2,2743.6,2.3311]
[1724571678264,3.6441,2744.2,2743.6,5.97591]
[1724571678425,3.64419,2744.1,2743.6,2.3311]
[1724571679859,3.64355,2744.6,2743.6,2.3311]
[1724571680063,3.64401,2744.3,2743.7,3.71757474]
[1724571680241,3.64401,2744.3,2743.8,2.69567]
[1724571680426,11.10328,2744.8,2743.8,2.69567]
[1724571680427,7.46,2744.8,2743.8,2.69567]
[1724571680625,3.6438,2744.4,2743.8,2.69567]
[1724571680944,7.46,2744.8,2743.8,2.69567]
[1724571681140,3.64422,2744.1,2743.8,2.3311]
[1724571681540,3.64432,2744.0,2743.8,2.3311]
[1724571681738,3.64409,2744.2,2743.8,2.3311]
[1724571681739,7.28824,2744.2,2743.8,2.3311]
[1724571682339,3.64419,2744.1,2743.8,2.3311]
[1724571682956,3.64409,2744.2,2743.5,6.07628]
[1724571682957,3.64436,2744.0,2743.5,6.07628]
[1724571683988,7.28825,2744.2,2743.6,3.64475]
[1724571684284,3.64419,2744.1,2743.5,6.07624]
[1724571684491,3.64409,2744.2,2743.5,9.72112]
[1724571684662,3.64409,2744.2,2743.6,3.64477]
[1724571685054,3.64385,2744.4,2743.6,3.64477]
[1724571685254,3.64385,2744.4,2743.6,3.64474]
[1724571685453,3.64385,2744.4,2743.0,3.0]
[1724571685454,3.64385,2744.4,2743.9,2.4314]
[1724571685990,3.64381,2744.4,2743.9,2.4314]
[1724571686508,3.64444,2744.0,2743.5,2.4314]
[1724571686729,3.64444,2744.0,2743.5,6.07635]
[1724571686901,7.28826,2744.2,2743.6,3.64481]
[1724571687064,3.64411,2744.2,2743.6,7.28962]
[1724571687259,3.64411,2744.2,2743.6,3.64481]
[1724571687467,7.28825,2744.2,2743.6,3.64481]
[1724571687680,7.28826,2744.2,2743.6,3.64481]
[1724571688280,3.64421,2744.1,2743.6,3.64481]
[1724571688481,3.64421,2744.1,2743.5,2.4314]
[1724571688679,3.64421,2744.1,2743.5,6.07637]
[1724571688996,3.64421,2744.1,2743.6,3.64483]
[1724571690213,3.64408,2744.2,2743.6,7.28959]
[1724571690411,3.64408,2744.2,2743.6,3.64475]
[1724571690717,6.73239872,2744.7,2743.6,3.64475]
[1724571690718,3.64421,2744.1,2743.6,3.64475]
[1724571690914,3.64433,2744.0,2743.5,2.4314]
[1724571691097,7.28851,2744.1,2743.5,6.07635]
[1724571691286,3.64421,2744.1,2743.5,6.07635]
[1724571691615,3.64421,2744.1,2743.6,3.64482]
[1724571692598,3.64421,2744.1,2743.5,2.4314]
[1724571692968,3.64421,2744.1,2743.5,9.72118]
[1724571693209,3.64421,2744.1,2743.6,3.6448]
[1724571693515,3.64421,2744.1,2743.5,6.07628]
[1724571693919,3.64421,2744.1,2743.5,9.72116]
[1724571694219,3.64421,2744.1,2743.5,9.72117]
[1724571694389,3.64421,2744.1,2743.5,9.72118]
[1724571694592,3.08898872,2744.4,2743.5,2.4314]
[1724571694788,3.30889887,2744.3,2743.5,2.4314]
[1724571695139,3.64443,2744.0,2743.5,6.0763]
[1724571695271,3.64445,2743.9,2743.5,2.4314]
[1724571695893,3.64458,2743.8,2743.5,2.4314]
[1724571696092,3.64458,2743.8,2743.2,2.4314]
[1724571696966,3.64487,2743.6,2743.2,2.4314]
[1724571697420,0.728945,2743.6,2742.6,2.4314]
[1724571697615,3.64578,2742.9,2742.6,2.4314]
[1724571697828,3.64562,2743.1,2742.6,2.4314]
[1724571698453,3.0,2743.4,2742.3,2.4314]
[1724571698454,3.64606,2742.7,2742.3,2.4314]
[1724571700002,3.64621,2742.6,2742.0,2.4314]
[1724571700418,3.64621,2742.6,2742.0,6.07834]
[1724571700934,3.64591,2742.8,2742.0,6.07834]
[1724571701135,3.64591,2742.8,2742.1,3.64683]
[1724571701297,3.64569,2743.0,2742.0,2.4314]
[1724571701298,3.64569,2743.0,2742.3,3.64646]
[1724571701488,6.64579,2742.9,2742.3,3.64646]
[1724571701932,3.64579,2742.9,2742.3,3.64646]
[1724571703132,3.64525,2743.3,2742.1,2.3914]
[1724571703443,5.57798872,2743.5,2742.5,2.3914]
[1724571703444,3.64537,2743.2,2742.5,2.3914]
[1724571703619,3.64555,2743.1,2742.5,2.3914]
[1724571704008,5.57798872,2743.5,2742.5,2.3914]
[1724571704009,3.64586,2742.9,2742.5,2.3914]
[1724571704417,3.6456,2743.1,2742.5,2.3914]
[1724571704936,3.64529,2743.3,2742.7,3.64602]
[1724571705449,3.64529,2743.3,2742.7,3.64603]
[1724571706750,3.64551,2743.1,2742.5,2.3914]
[1724571707153,3.64551,2743.1,2742.5,6.03767]
[1724571707465,3.0,2743.5,2742.7,3.64597]
[1724571707466,3.64521,2743.4,2742.7,3.64597]
[1724571707844,3.0,2743.5,2742.7,3.64596]
[1724571708169,7.46,2743.6,2743.0,6.03703]
[1724571708367,7.46,2743.6,2743.0,2.3914]
[1724571708520,3.64499,2743.5,2743.0,2.3914]
[1724571708720,3.64477,2743.7,2743.0,2.3914]
[1724571708937,3.64477,2743.7,2743.0,6.03695]
[1724571709735,3.64493,2743.6,2743.0,6.03695]
[1724571710826,6.6445,2743.9,2743.0,2.3914]
[1724571711023,3.64525,2743.3,2742.7,6.03738]
[1724571711452,3.64539,2743.2,2742.7,2.3914]
[1724571711655,3.64501,2743.5,2742.7,2.3914]
[1724571711864,3.64485,2743.6,2742.9,3.64569]
[1724571712171,3.64485,2743.6,2743.0,3.64563]
[1724571712740,7.46,2743.8,2743.1,2.3914]
[1724571712951,7.46,2743.8,2743.2,3.64527]
[1724571713251,3.64456,2743.9,2743.2,3.64527]
[1724571713451,3.64472,2743.7,2743.1,2.3914]
[1724571713658,3.64455,2743.9,2743.2,3.64537]
[1724571713842,3.64466,2743.8,2743.2,3.64537]
[1724571714869,3.64498,2743.5,2743.1,2.3914]
[1724571715026,3.64534,2743.3,2742.8,2.3914]
[1724571715226,3.64539,2743.2,2742.8,2.3914]
[1724571715678,3.64554,2743.1,2742.8,2.3914]
[1724571715830,3.64554,2743.1,2742.4,6.03775]
[1724571716328,3.64566,2743.0,2742.4,6.03775]
[1724571716877,3.64566,2743.0,2742.5,3.6463]
[1724571717181,3.64523,2743.4,2742.4,2.3914]
[1724571717383,3.64505,2743.5,2742.6,7.29223]
[1724571717384,3.64534,2743.3,2742.6,7.29223]
[1724571717531,3.64534,2743.3,2742.6,3.64606]
[1724571717730,3.64534,2743.3,2742.7,3.64595]
[1724571718145,3.64534,2743.3,2742.7,3.64597]
[1724571718984,7.29071,2743.3,2742.7,3.64597]
[1724571719133,3.64534,2743.3,2742.7,3.64597]
[1724571719340,3.64534,2743.3,2742.5,3.64622]
[1724571719576,3.64551,2743.1,2742.5,3.64622]
[1724571719751,7.29112,2743.1,2742.5,3.64622]
[1724571719953,3.64551,2743.1,2742.5,3.64622]
[1724571720342,3.64551,2743.1,2742.6,3.64616]
[1724571720677,3.64551,2743.1,2742.5,3.64622]
[1724571720985,3.64551,2743.1,2742.6,3.64615]
[1724571721279,13.4513,2743.6,2742.4,2.3914]
[1724571721280,3.64577,2743.0,2742.4,2.3914]
[1724571722239,3.64591,2742.8,2742.4,2.3914]
[1724571723080,3.64553,2743.1,2742.5,3.64617]
[1724571723650,3.64553,2743.1,2742.5,7.29238]
[1724571723853,3.64553,2743.1,2742.5,3.64617]
[1724571725263,3.64566,2743.0,2742.5,3.64617]
[1724571725579,3.64544,2743.2,2742.6,3.64609]
[1724571725937,3.64544,2743.2,2742.7,3.64604]
[1724571726144,3.64551,2743.1,2742.5,3.64617]
[1724571726370,3.64567,2743.0,2742.5,3.64617]
[1724571727476,3.64571,2743.0,2742.4,6.03782]
[1724571727693,3.64591,2742.8,2742.4,2.3914]
[1724571727839,3.64571,2743.0,2742.4,2.3914]
[1724571728277,3.64585,2742.9,2742.4,2.3914]
[1724571728773,3.64607,2742.7,2742.1,5.94166]
[1724571729176,3.64607,2742.7,2742.1,5.94165]
[1724571729371,3.64607,2742.7,2742.1,9.58841]
[1724571729571,3.64607,2742.7,2742.1,5.94165]
[1724571730000,3.64607,2742.7,2742.1,9.58841]
[1724571730369,3.64591,2742.8,2742.2,3.64668]
[1724571730571,7.29192,2742.8,2742.2,3.64668]
[1724571730772,3.64591,2742.8,2742.1,5.94165]
[1724571731905,3.64624,2742.6,2742.1,5.94165]
[1724571732261,3.64591,2742.8,2742.2,3.64667]
[1724571732262,7.2919,2742.8,2742.2,3.64667]
[1724571732501,3.64591,2742.8,2742.2,3.64667]
[1724571733078,3.64606,2742.7,2742.1,9.5884]
[1724571733400,3.64606,2742.7,2742.1,5.94165]
[1724571733557,3.64606,2742.7,2742.1,9.5884]
[1724571733763,3.64606,2742.7,2742.2,3.64662]
[1724571733965,3.64606,2742.7,2742.1,5.94165]
[1724571734201,3.64606,2742.7,2742.1,9.58839]
[1724571734905,3.64606,2742.7,2742.1,5.94164]
[1724571735109,3.64558,2743.1,2742.5,3.64621]
[1724571735269,3.64558,2743.1,2742.3,3.64653]
[1724571735470,3.64558,2743.1,2742.6,2.2949]
[1724571736490,7.29119,2743.1,2742.6,2.2949]
[1724571736685,3.64558,2743.1,2742.6,2.2949]
[1724571736891,3.64573,2743.0,2742.3,5.94143]
[1724571737403,3.64587,2742.9,2742.3,5.94143]
[1724571737803,3.64587,2742.9,2742.3,5.9414]
[1724571738179,3.64573,2743.0,2742.4,3.64643]
[1724571738180,7.29146,2743.0,2742.4,3.64643]
[1724571738587,3.64578,2742.9,2742.4,3.64643]
[1724571738786,3.64578,2742.9,2742.3,2.2949]
[1724571738990,3.64578,2742.9,2742.4,0.22949]
[1724571739632,3.64592,2742.8,2742.3,5.94138]
[1724571739928,3.64592,2742.8,2742.0,5.94186]
[1724571739929,3.64624,2742.6,2742.0,5.94186]
[1724571741122,3.64624,2742.6,2742.1,3.64676]
[1724571741516,3.64624,2742.6,2742.1,7.29351]
[1724571741829,3.64624,2742.6,2742.1,3.64675]
[1724571742380,7.29193,2742.8,2742.1,7.29351]
[1724571742585,7.29193,2742.8,2742.2,3.6467]
[1724571742783,3.64592,2742.8,2742.2,3.6467]
[1724571743431,7.29193,2742.8,2742.2,3.6467]
[1724571743802,3.64592,2742.8,2742.2,3.6467]
[1724571744199,7.29195,2742.8,2742.2,3.6467]
[1724571744413,3.64592,2742.8,2742.2,3.6467]
[1724571745345,7.29195,2742.8,2742.2,3.6467]
[1724571745551,3.64605,2742.7,2742.2,3.6467]
[1724571746336,3.64619,2742.6,2742.1,3.64675]
[1724571746549,3.64619,2742.6,2742.0,2.2949]
[1724571746843,7.29304,2742.4,2741.8,3.64722]
[1724571746998,7.29308,2742.4,2741.8,3.64722]
[1724571747196,3.64652,2742.4,2741.8,3.64722]
[1724571747402,3.64659,2742.3,2741.7,9.71226]
[1724571747626,3.6468,2742.2,2741.7,2.4177]
[1724571747832,2.2827,2742.5,2741.2,1.12111223]
[1724571747833,3.08898872,2742.3,2741.4,2.4177]
[1724571748030,3.08898872,2742.3,2741.1,3.91556944]
[1724571748031,3.64733,2741.8,2741.1,3.91556944]
[1724571748242,5.92974,2742.0,2741.3,3.6479]
[1724571748442,5.92974,2742.0,2741.1,6.06575]
[1724571748443,3.64732,2741.8,2741.1,6.06575]
[1724571748848,3.64732,2741.8,2741.2,3.64795]
[1724571749840,7.29465,2741.8,2741.2,3.64795]
[1724571750007,3.64737,2741.7,2741.1,6.06575]
[1724571750347,3.64737,2741.7,2741.1,9.71382]
[1724571750739,3.64737,2741.7,2741.1,6.06575]
[1724571750945,3.64732,2741.8,2741.2,3.64802]
[1724571751243,3.64737,2741.7,2741.1,6.06575]
[1724571751615,3.64732,2741.8,2741.1,9.71382]
[1724571752229,3.64732,2741.8,2741.1,3.64813]
[1724571752230,3.64735,2741.8,2741.1,3.64813]
[1724571752617,3.64735,2741.8,2741.2,3.64802]
[1724571753416,7.2944,2741.9,2741.2,3.64802]
[1724571753751,3.64739,2741.7,2741.2,3.64802]
[1724571755045,3.64752,2741.6,2741.0,7.29643]
[1724571755354,3.64752,2741.6,2741.1,3.64814]
[1724571756246,3.64752,2741.6,2741.0,3.64821]
[1724571756631,3.64752,2741.6,2741.0,7.29643]
[1724571757634,3.64752,2741.6,2740.8,2.4177]
[1724571757635,2.2827,2741.6,2740.8,2.4177]
[1724571757869,3.64826,2741.1,2740.5,6.06664]
[1724571758064,3.6483,2741.0,2740.5,2.4177]
[1724571758733,3.6483,2741.0,2740.4,3.64902]
[1724571759044,3.64852,2740.9,2740.3,2.4177]
[1724571759248,3.64862,2740.8,2740.3,2.4177]
[1724571759449,7.2967,2741.0,2740.3,2.4177]
[1724571759677,3.6483,2741.0,2740.4,3.64907]
[1724571759971,3.64858,2740.8,2740.3,2.4177]
[1724571760475,3.64858,2740.8,2740.3,6.0669]
[1724571761295,7.29724,2740.8,2740.3,2.4177]
[1724571761599,7.29724,2740.8,2740.0,5.91885]
[1724571761600,3.64892,2740.6,2740.0,5.91885]
[1724571761749,3.64905,2740.5,2740.0,2.2693]
[1724571761948,7.29788,2740.6,2740.0,2.2693]
[1724571762151,3.64892,2740.6,2740.0,5.91889]
[1724571762386,7.29788,2740.6,2740.0,5.91889]
[1724571762545,3.64892,2740.6,2740.0,5.91889]
[1724571762749,7.29784,2740.6,2740.0,5.91889]
[1724571762995,7.29786,2740.6,2740.0,5.91889]
[1724571763147,3.64907,2740.5,2740.0,2.2693]
[1724571763646,3.64907,2740.5,2739.9,3.64972]
[1724571763890,3.64907,2740.5,2739.7,2.2693]
[1724571763891,7.46,2741.0,2739.7,5.91922]
[1724571764191,3.64932,2740.3,2739.7,2.2693]
[1724571764550,3.64932,2740.3,2739.8,3.64982]
[1724571766011,3.64953,2740.1,2739.4,3.65034]
[1724571766570,7.29914,2740.1,2739.4,3.65034]
[1724571766810,3.64953,2740.1,2739.4,3.65034]
[1724571767000,3.64977,2739.9,2739.4,3.65034]
[1724571767670,7.29912,2740.1,2739.4,3.65034]
[1724571767869,3.64953,2740.1,2739.4,3.65034]
[1724571768109,7.29914,2740.1,2739.5,0.365034]
[1724571768315,3.64953,2740.1,2739.5,0.365034]
[1724571768672,3.64995,2739.8,2739.2,3.65064]
[1724571768869,3.64989,2739.9,2739.1,5.92013]
[1724571769108,2.3871,2740.2,2739.1,2.2693]
[1724571769109,3.65026,2739.6,2739.1,2.2693]
[1724571770573,3.65038,2739.5,2739.1,2.2693]
[1724571770806,2.3871,2739.3,2739.0,0.1]
[1724571771011,3.65083,2739.1,2739.0,0.1]
[1724571771918,2.3871,2740.3,2739.5,3.65028]
[1724571772071,3.64947,2740.2,2739.6,2.2693]
[1724571772274,0.96857,2740.2,2739.6,2.2693]
[1724571772516,3.64971,2740.0,2739.3,5.9198]
[1724571772675,3.64977,2739.9,2739.3,5.9198]